[Event "FIDE WTC Prel-B 2022"]
[Site "Jerusalem"]
[Date "2022.11.21"]
[Round "3.21"]
[White "Yakubboev, Nodirbek"]
[Black "Niemann, Hans Moke"]
[Result "1/2-1/2"]
[ECO "C54"]
[WhiteElo "2667"]
[BlackElo "2699"]
[Annotator "TA"]
[PlyCount "88"]
[EventDate "2022.11.20"]
[EventType "team-tourn"]
[EventCountry "ISR"]
[SourceTitle "playchess.com"]
[Source "ChessBase"]
[SourceQuality "1"]
[WhiteTeam "Uzbekistan"]
[BlackTeam "United States"]
[WhiteTeamCountry "UZB"]
[BlackTeamCountry "USA"]
[TimeControl "2700+10"]

{[%evp 13,88,18,17,10,21,16,12,14,12,0,2,0,10,4,0,0,15,11,10,18,18,0,-11,-11,0,0,1,-6,-8,-2,0,0,16,0,0,0,0,0,0,0,0,0,0,0,0,0,18,14,18,16,29,18,11,18,16,0,0,0,0,0,-2,-66,0,0,0,0,0,0,0,0,0,0,0,0,0,0,0]} 1. e4 {[%emt 0:00:03]} e5 {[%emt 0:00:46]} 2. Nf3 {[%emt 0:00:03]} Nc6 {[%emt 0:00:04]} 3. Bc4 {[%emt 0:00:03]} Nf6 {[%emt 0:00:09]} 4. d3 {[%emt 0:00:03]} Bc5 {[%emt 0:00:34]} 5. O-O {[%emt 0:00:07]} d6 {[%emt 0:00:55]} 6. c3 {[%emt 0:00:14]} a6 {[%emt 0:00:25]} 7. Bb3 {[%emt 0:01:26] 7.Bb3 has lost popularity.} O-O {[%emt 0:00:18]} 8. h3 {[%emt 0:02:43] C54: Giuoco Piano: 4 c3 Nf6, main lines with 5 d4 and 5 d3.} h6 {[%emt 0:00:11]} 9. Re1 {[%emt 0:00:07]} Re8 {[%emt 0:00:14]} 10. Nbd2 {[%emt 0:01:42][%cal Bb1d2,Bd2f1,Bf1e3][%mdl 32]} Be6 {[%emt 0:00:07]} 11. Bxe6 {[%emt 0:01:35]} Rxe6 {[%emt 0:00:55]} 12. b4 {[%emt 0:00:40]} Ba7 {[%emt 0:00:05]} 13. a4 {[%emt 0:00:47]} Qd7 {[%emt 0:00:41]} 14. Nf1 {[%emt 0:02:18] [#]} Ne7 $146 {[%emt 0:01:10]} ({Predecessor:} 14... d5 15. Qc2 Rd8 16. b5 Na5 17. exd5 Qxd5 18. Be3 c5 19. Red1 Qb3 20. Qxb3 Nxb3 {½-½ (48) Achilles,E (2429)-Van Damme,L (2218) ICCF email 2012}) 15. Be3 {[%emt 0:02:18]} Bxe3 {[%emt 0:00:53]} 16. Nxe3 {[%emt 0:00:04]} Ng6 {[%emt 0:00:05]} 17. Ra2 {[%emt 0:04:14]} d5 {[%emt 0:00:23]} 18. Rd2 {[%emt 0:02:16]} dxe4 {[%emt 0:03:20]} 19. dxe4 {[%emt 0:00:02]} Rd6 {[%emt 0:00:02]} 20. Nd5 {[%emt 0:09:26]} Nxd5 {[%emt 0:00:09]} 21. exd5 {[%emt 0:00:05]} f6 {[%emt 0:06:33]} 22. c4 {[%emt 0:00:12][%cal Bc3c4,Bc4c5][%mdl 32] [#] Strongly threatening c5.} Nf4 {[%emt 0:00:20]} 23. g3 {[%emt 0:02:00]} Nxh3+ {[%emt 0:00:18]} 24. Kh2 {[%emt 0:00:02]} Rd8 {[%emt 0:19:05]} 25. c5 {[%emt 0:01:18]} Nxf2 $1 {[%emt 0:00:05]} 26. Rxf2 {[%emt 0:00:01]} Rxd5 {[%emt 0:00:02]} 27. Qb3 {[%emt 0:00:02]} Kh8 {[%emt 0:00:09]} 28. Re3 {[%emt 0:01:26]} Qg4 {[%emt 0:00:43]} 29. Kg2 {[%emt 0:00:31]} e4 {[%emt 0:00:35]} 30. Nh2 {[%emt 0:01:33][%cal Bf3h2,Bh2f1,Bf1e3][%mdl 32]} Qg6 {[%emt 0:00:04] [#] Threatens to win with ...Rd3.} 31. Nf1 {[%emt 0:02:23]} f5 {[%emt 0:00:17]} 32. Ree2 {[%emt 0:01:32]} Rd3 {[%emt 0:00:14]} 33. Qb2 {[%emt 0:00:21] Threatening Qe5.} Qe6 {[%emt 0:05:55] Prevents Qe5.} 34. Ne3 {[%emt 0:00:59]} Rf8 {[%emt 0:00:08]} 35. Rf4 {[%emt 0:03:26]} Rf7 {[%emt 0:00:44] next ...Kh7 is good for Black.} (35... Qg6 $2 36. Qe5 $18 (36. g4 Rf6 $16)) 36. Qa1 {[%emt 0:02:13]} h5 {[%emt 0:01:35]} (36... Qg6 $2 37. Qe5 $18 (37. Qf1 Rb3 $11)) 37. Rh4 {[%emt 0:01:08]} ({Better is} 37. Qh1 $11 g6 38. Qh4) 37... Qh6 {[%emt 0:00:12]} (37... Qg6 $2 38. Qh1 Kg8 39. Rxh5 $18 (39. Qh3 Qf6 $11)) (37... f4 $2 38. gxf4 Kg8 39. Qe5 Qxe5 40. fxe5 $18) ({Black should play} 37... Kg8 $1 $15) 38. Qe5 $11 {[%emt 0:01:43] Hoping for Qe8+. Dancing on a razor blade. Active counter play! The position is equal.} Rxe3 {[%emt 0:01:45]} 39. Rxe3 {[%emt 0:00:06]} Qxe3 {[%emt 0:00:02]} 40. Rxh5+ {[%emt 0:00:15] KQR-KQR} Kg8 {[%emt 0:00:03]} 41. Qe8+ {[%emt 0:00:02]} Rf8 {[%emt 0:00:01]} 42. Qe6+ {[%emt 0:00:04]} Rf7 {[%emt 0:00:01]} 43. Qe8+ {[%emt 0:00:24]} Rf8 {[%emt 0:00:01]} 44. Qe6+ {[%emt 0:00:13]} Rf7 {[%emt 0:00:01] An interesting draw.  Weighted Error Value: White=0.06 (flawless) /Black=0.05 (flawless)} 1/2-1/2

[Event "FIDE WTC Prel-B 2022"]
[Site "Jerusalem"]
[Date "2022.11.21"]
[Round "3.22"]
[White "Bruzon Batista, Lazaro"]
[Black "Sindarov, Javokhir"]
[Result "0-1"]
[ECO "E62"]
[WhiteElo "2615"]
[BlackElo "2654"]
[Annotator "TA"]
[PlyCount "102"]
[EventDate "2022.11.20"]
[EventType "team-tourn"]
[EventCountry "ISR"]
[SourceTitle "playchess.com"]
[Source "ChessBase"]
[SourceQuality "1"]
[WhiteTeam "United States"]
[BlackTeam "Uzbekistan"]
[WhiteTeamCountry "USA"]
[BlackTeamCountry "UZB"]
[TimeControl "2700+10"]

{[%evp 15,102,27,41,39,39,34,64,52,52,49,61,61,78,74,68,47,42,50,50,43,42,38,44,30,59,40,60,54,57,50,43,39,61,56,54,47,56,29,120,41,88,-14,-15,-13,-10,-20,-14,-38,-44,-39,-39,-64,-61,-51,-43,-191,-198,-198,-198,-197,-181,-407,-316,-300,-287,-308,-301,-368,-371,-909,-262,-302,-302,-279,-297,-307,-308,-452,-452,-534,-522,-524,-521,-542,-531,-548,-547,-682,-649]} 1. d4 {[%emt 0:00:09]} Nf6 {[%emt 0:00:02]} 2. Nf3 {[%emt 0:00:04]} g6 {[%emt 0:00:07]} 3. g3 {[%emt 0:00:18]} Bg7 {[%emt 0:00:35]} 4. Bg2 {[%emt 0:00:06]} O-O {[%emt 0:00:54]} 5. c4 {[%emt 0:00:34]} d6 {[%emt 0:05:39]} 6. O-O {[%emt 0:00:08]} Nc6 {[%emt 0:00:08]} 7. Nc3 {[%emt 0:00:13]} Bg4 {[%emt 0:00:02] 7...e5 is a critical line.} 8. Be3 {[%emt 0:03:17]} Qd7 {[%emt 0:03:02] was the old line (8...Nd7).} 9. Rc1 {[%emt 0:00:04] E62: King's Indian: Fianchetto: 6...c6 and Panno Variation (6...Nc6) without ...a6.} Bh3 {[%emt 0:04:34]} 10. d5 {[%emt 0:03:06]} Na5 {[%emt 0:00:04]} 11. b3 {[%emt 0:00:12] [#] White is slightly better.} Bxg2 $146 {[%emt 0:05:34]} ({Predecessor:} 11... c5 12. Bd2 b6 13. e4 Bxg2 14. Kxg2 e6 15. Re1 exd5 16. cxd5 Rfe8 17. h3 Rad8 {1-0 (30) Lemos,D (2516)-Paehtz,T (2365) Caleta 2017}) 12. Kxg2 {[%emt 0:00:08]} c5 {[%emt 0:02:27]} 13. Qd3 {[%emt 0:12:19]} a6 {[%emt 0:04:59]} 14. Bd2 {[%emt 0:00:08]} b5 {[%emt 0:01:24]} 15. Nd1 {[%emt 0:03:44]} Nb7 {[%emt 0:04:35]} 16. e4 {[%emt 0:00:12]} e6 {[%emt 0:00:31]} 17. Nc3 {[%emt 0:02:02]} b4 {[%emt 0:00:43]} 18. Na4 {[%emt 0:02:20] aiming for Nb6.} Rae8 {[%emt 0:00:36]} 19. Rce1 {[%emt 0:00:28]} Qc7 {[%emt 0:03:28]} 20. Bc1 {[%emt 0:03:38]} Re7 {[%emt 0:00:55]} 21. dxe6 {[%emt 0:02:21]} Rxe6 {[%emt 0:00:23]} 22. Ng5 {[%emt 0:00:10]} Re7 {[%emt 0:00:15]} 23. f3 {[%emt 0:00:11]} Na5 {[%emt 0:01:21]} 24. Rd1 {[%emt 0:00:30]} Rd8 {[%emt 0:00:21]} 25. Nh3 {[%emt 0:00:24]} Nc6 {[%emt 0:00:23]} 26. Bg5 {[%emt 0:04:42]} Re5 {[%emt 0:03:02]} (26... Qb7 $11) 27. Qd2 {[%emt 0:02:31]} ({White should try} 27. Bf4 $16) 27... Nd4 {[%emt 0:01:05] [#]} (27... Qb7 $14 {might be stronger.}) 28. Nb2 {[%emt 0:00:01]} (28. Be3 $1 $16) 28... Qb7 $11 {[%emt 0:01:25][%cal Of6e4] Hoping for ...Nxe4!} 29. Bxf6 {[%emt 0:04:32]} Bxf6 {[%emt 0:00:01]} 30. Kh1 {[%emt 0:00:40]} Bg7 {[%emt 0:00:21]} 31. Nd3 {[%emt 0:00:07]} Ree8 {[%emt 0:00:06]} 32. Ndf4 {[%emt 0:00:37]} a5 {[%emt 0:00:02]} 33. Nd5 {[%emt 0:00:10]} a4 {[%emt 0:00:01]} 34. Qd3 {[%emt 0:00:05]} Ra8 {[%emt 0:00:04]} 35. Rf2 {[%emt 0:00:07] This move loses the game for White.} (35. f4 $15) 35... axb3 $19 {[%emt 0:00:20]} 36. axb3 {[%emt 0:00:01]} Ra3 {[%emt 0:01:41]} 37. Rb1 {[%emt 0:00:01] [#]} Rea8 $1 {[%emt 0:00:00][%cal Oa3b3]} 38. Nhf4 $2 {[%emt 0:00:28]} (38. Ng1 {keeps fighting.}) 38... Ra1 {[%emt 0:00:00]} 39. Rff1 {[%emt 0:00:19]} Rxb1 {[%emt 0:00:00]} 40. Rxb1 {[%emt 0:00:01]} Ra2 {[%emt 0:00:00] Against Ne2} 41. Nh3 {[%emt 0:00:36]} Qa7 {[%emt 0:00:00]} 42. f4 $2 {[%emt 0:00:07]} (42. Qd1) 42... Ra1 $2 {[%emt 0:00:00]} (42... Rc2 {Threatens to win with ...Qa2.} 43. Ne3 Qa2 44. Nxc2 Qxb1+ 45. Ne1 Qxe1+ 46. Kg2 Qc3) 43. Rxa1 {[%emt 0:00:11]} Qxa1+ {[%emt 0:00:00]} 44. Kg2 {[%emt 0:00:02]} Qa2+ {[%emt 0:00:00]} 45. Nf2 {[%emt 0:00:02]} Qxb3 {[%emt 0:00:00] ...Qa2 is the strong threat.} 46. Qxb3 {[%emt 0:00:29]} (46. Ne7+ $142 Kf8 47. Nc8) 46... Nxb3 {[%emt 0:00:00] KBN-KNN. Black is clearly winning.} 47. Nd3 {[%emt 0:00:08]} Nd2 {[%emt 0:01:11][%csl LRc4,LRe4]} 48. e5 {[%emt 0:00:01]} dxe5 {[%emt 0:00:01]} 49. Nxc5 {[%emt 0:00:03]} b3 {[%emt 0:00:01]} 50. Na4 {[%emt 0:00:29]} Nxc4 {[%emt 0:00:10]} 51. f5 {[%emt 0:00:10]} gxf5 {[%emt 0:00:32] Weighted Error Value: White=0.46/Black=0.25 (precise)} 0-1

[Event "FIDE WTC Prel-B 2022"]
[Site "Jerusalem"]
[Date "2022.11.21"]
[Round "3.23"]
[White "Vokhidov, Shamsiddin"]
[Black "Akobian, Varuzhan"]
[Result "1/2-1/2"]
[ECO "C01"]
[WhiteElo "2568"]
[BlackElo "2591"]
[Annotator "TA"]
[PlyCount "154"]
[EventDate "2022.11.20"]
[EventType "team-tourn"]
[EventCountry "ISR"]
[SourceTitle "playchess.com"]
[Source "ChessBase"]
[SourceQuality "1"]
[WhiteTeam "Uzbekistan"]
[BlackTeam "United States"]
[WhiteTeamCountry "UZB"]
[BlackTeamCountry "USA"]
[TimeControl "2700+10"]

{[%evp 15,154,8,24,25,41,26,17,4,18,19,29,27,33,43,110,108,101,96,103,26,47,53,48,38,49,46,46,15,13,21,43,0,0,0,36,24,33,31,26,0,0,0,0,0,0,0,0,0,27,27,18,31,28,27,25,11,11,25,44,44,57,44,95,95,116,14,14,14,14,14,30,14,20,0,33,10,58,58,58,65,102,16,16,16,12,4,4,4,6,4,4,4,4,-17,0,0,0,0,0,0,8,8,20,20,20,14,25,0,56,54,54,52,51,51,51,49,48,48,51,58,58,58,59,8,22,22,22,22,22,22,22,8,8,8,8,8,8,0,8,8,8]} 1. e4 {[%emt 0:00:02]} e6 {[%emt 0:00:04]} 2. d4 {[%emt 0:00:01]} d5 {[%emt 0:00:03]} 3. Nc3 {[%emt 0:00:02]} Bb4 {[%emt 0:01:23]} 4. exd5 {[%emt 0:00:03]} exd5 {[%emt 0:00:16]} 5. Bd3 {[%emt 0:00:01]} Nc6 {[%emt 0:00:41]} 6. a3 {[%emt 0:00:03]} Ba5 {[%emt 0:01:01]} 7. Nge2 {[%emt 0:00:02]} Nge7 {[%emt 0:00:13]} 8. O-O {[%emt 0:00:02]} O-O {[%emt 0:00:43]} 9. Na4 {[%emt 0:02:11] C01: French: Exchange Variation.} Bf5 {[%emt 0:01:21]} 10. Bf4 {[%emt 0:03:00] [#]} (10. Nc5 $5 {[%cal Rc5b7]}) 10... Re8 $146 {[%emt 0:01:24]} ({Predecessor:} 10... Qc8 11. b4 Bb6 12. Nxb6 axb6 13. Re1 Qd7 14. Qd2 Rfe8 15. Bb5 Ng6 16. Bg3 Re7 {½-½ (40) Abrahamyan,T (2366)-Matsenko,S (2563) Saint Louis 2018}) 11. c3 {[%emt 0:01:27]} Bxd3 {[%emt 0:03:42]} 12. Qxd3 {[%emt 0:00:02]} Ng6 {[%emt 0:00:35][%cal Oe8e2]} 13. Bg3 {[%emt 0:00:06]} Nce7 {[%emt 0:00:09]} 14. Rae1 {[%emt 0:04:27]} c6 {[%emt 0:00:43] [#]} (14... h5 $14) 15. f4 $1 $16 {[%emt 0:06:11]} f5 {[%emt 0:01:19]} 16. Nc5 {[%emt 0:00:06]} Qc8 {[%emt 0:00:18]} 17. Qc2 {[%emt 0:00:28] White is more active.} ({Better is} 17. h4 $16) 17... Bc7 {[%emt 0:03:11]} 18. Nc1 {[%emt 0:02:29]} Nf8 {[%emt 0:02:16]} 19. Re3 {[%emt 0:01:10]} b6 {[%emt 0:01:54]} 20. N5d3 {[%emt 0:00:02]} Qd7 {[%emt 0:01:23]} 21. Ne5 {[%emt 0:03:36]} Bxe5 {[%emt 0:00:22]} 22. fxe5 {[%emt 0:00:02]} Ne6 {[%emt 0:00:10]} 23. Ne2 {[%emt 0:02:51]} g5 {[%emt 0:04:08]} 24. Be1 {[%emt 0:00:52]} Rf8 {[%emt 0:00:23]} (24... f4 $5 {[%cal Rf4e3]} 25. Rh3 Ng6 $11) 25. Rh3 {[%emt 0:00:56]} Rf7 {[%emt 0:03:06]} 26. Ng3 {[%emt 0:03:02][%cal Rg3f5]} Raf8 {[%emt 0:07:17]} 27. Bd2 {[%emt 0:03:16]} f4 {[%emt 0:01:05]} 28. Nh5 {[%emt 0:00:31] Threatening mate with Nf6+.} Ng6 {[%emt 0:00:22]} 29. Nf6+ {[%emt 0:00:39]} Rxf6 {[%emt 0:00:02]} 30. exf6 {[%emt 0:00:01]} Rxf6 {[%emt 0:00:01]} 31. Rh5 {[%emt 0:03:07]} Kg7 {[%emt 0:03:36]} 32. Qd1 {[%emt 0:01:08]} h6 {[%emt 0:00:13]} 33. Qg4 {[%emt 0:01:17]} Nc5 {[%emt 0:02:55]} 34. Qxd7+ {[%emt 0:00:24]} Nxd7 {[%emt 0:00:02]} 35. g3 {[%emt 0:02:51]} fxg3 {[%emt 0:00:11]} 36. hxg3 {[%emt 0:00:07]} Rxf1+ {[%emt 0:00:17]} 37. Kxf1 $11 {[%emt 0:00:01][%mdl 4096] Endgame KRB-KNN} Nf6 {[%emt 0:00:09]} 38. Rh2 {[%emt 0:00:17]} Ne4 {[%emt 0:00:05] [#]} (38... Ne7 $14) 39. Be1 $1 $16 {[%emt 0:00:45]} Ne7 {[%emt 0:00:31]} 40. Re2 {[%emt 0:00:01]} (40. g4 $16) 40... Nf5 $11 {[%emt 0:00:16]} 41. Kg2 {[%emt 0:00:01]} h5 {[%emt 0:00:06]} 42. a4 {[%emt 0:00:58]} a6 {[%emt 0:01:06]} 43. Bf2 {[%emt 0:01:31][%cal Oc3c4]} Kf6 {[%emt 0:00:26]} 44. Re1 {[%emt 0:00:44][%cal Oa4a5]} g4 {[%emt 0:00:28]} 45. b3 {[%emt 0:00:44]} Ke6 {[%emt 0:02:24]} (45... b5 $11 {is superior.}) 46. Rh1 $14 {[%emt 0:00:16]} Nf6 {[%emt 0:00:17]} 47. c4 {[%emt 0:00:11]} Nd6 {[%emt 0:00:09]} 48. c5 {[%emt 0:00:08]} (48. cxd5+ $16 cxd5 49. Be3) 48... bxc5 $11 {[%emt 0:00:00]} 49. dxc5 {[%emt 0:00:00]} Nf5 {[%emt 0:00:02]} 50. b4 {[%emt 0:00:19]} d4 {[%emt 0:00:12]} 51. b5 {[%emt 0:00:21]} cxb5 {[%emt 0:00:01]} 52. axb5 {[%emt 0:00:02]} axb5 {[%emt 0:00:01]} 53. Rb1 {[%emt 0:00:02]} Ne4 {[%emt 0:00:11]} 54. c6 {[%emt 0:00:09]} Nc3 {[%emt 0:00:07] Pair of Knights!} 55. Re1+ {[%emt 0:00:31]} Kd6 {[%emt 0:00:05]} 56. c7 $1 {[%emt 0:00:05]} Kxc7 {[%emt 0:00:02]} 57. Re5 {[%emt 0:00:01][%mdl 64] Deflection} Nd6 {[%emt 0:00:57]} 58. Bxd4 {[%emt 0:00:04]} b4 {[%emt 0:00:08]} 59. Rc5+ {[%emt 0:00:26]} Kd7 $1 {[%emt 0:00:01]} 60. Rxh5 {[%emt 0:00:26] Black must now prevent Bxc3.} Nce4 {[%emt 0:00:09]} 61. Rh4 {[%emt 0:00:24]} Kc6 {[%emt 0:00:12]} (61... Nf5 $11 62. Rxg4 Nxd4) 62. Rxg4 $14 {[%emt 0:00:03] aiming for Be5.} Kd5 {[%emt 0:00:01] Against Be5} 63. Bh8 {[%emt 0:00:07] Hoping for Kf3.} Nf5 $1 {[%emt 0:00:01]} 64. Rg8 {[%emt 0:00:05] Strongly threatening g4.} Nexg3 {[%emt 0:00:17]} 65. Rd8+ {[%emt 0:00:20]} Kc4 {[%emt 0:00:16]} 66. Rf8 {[%emt 0:00:09]} Kd3 {[%emt 0:00:20]} 67. Kf3 {[%emt 0:00:02]} b3 {[%emt 0:00:01]} 68. Rb8 {[%emt 0:00:05]} Kc2 {[%emt 0:00:17]} 69. Kf4 {[%emt 0:00:02]} ({White should try} 69. Rc8+ $14 Kd1 70. Rd8+ Kc2 71. Rd5) 69... Nd6 {[%emt 0:00:18] The position is equal.} 70. Kxg3 {[%emt 0:00:08]} Nc4 {[%emt 0:00:02]} 71. Rc8 {[%emt 0:00:34]} Kd3 {[%emt 0:00:08]} 72. Rd8+ {[%emt 0:00:03]} Kc2 {[%emt 0:00:02]} 73. Rd4 {[%emt 0:00:20]} b2 {[%emt 0:00:22]} 74. Rxc4+ {[%emt 0:00:02]} Kb3 {[%emt 0:00:00]} 75. Rc3+ {[%emt 0:00:03]} Ka4 $1 {[%emt 0:00:02]} (75... Kb4 {is a self mate.} 76. Rc7 Kb3 77. Rb7+ Kc2 78. Bxb2 Kd3 79. Rb4 Kd2 80. Kf3) 76. Rc4+ {[%emt 0:00:26]} Kb3 $1 {[%emt 0:00:04] [#]} (76... Kb5 {leads to mate.} 77. Rc8 Kb6 78. Bxb2 Kb7 79. Rc1 Kb8 80. Kf3 Ka8 81. Ke4) 77. Bxb2 $1 {[%emt 0:00:11] Intending Rd4 and mate.} Kxc4 {[%emt 0:00:13] Weighted Error Value: White=0.12 (very precise) /Black=0.10 (very precise)} 1/2-1/2

[Event "FIDE WTC Prel-B 2022"]
[Site "Jerusalem"]
[Date "2022.11.21"]
[Round "3.24"]
[White "Quesada Perez, Yuniesky"]
[Black "Vakhidov, Jakhongir"]
[Result "1/2-1/2"]
[ECO "B27"]
[WhiteElo "2583"]
[BlackElo "2607"]
[Annotator "TA"]
[PlyCount "84"]
[EventDate "2022.11.20"]
[EventType "team-tourn"]
[EventCountry "ISR"]
[SourceTitle "playchess.com"]
[Source "ChessBase"]
[SourceQuality "1"]
[WhiteTeam "United States"]
[BlackTeam "Uzbekistan"]
[WhiteTeamCountry "USA"]
[BlackTeamCountry "UZB"]
[TimeControl "2700+10"]

{[%evp 9,84,20,20,18,9,27,25,27,40,31,25,18,21,7,16,22,6,17,20,16,27,22,18,19,24,18,21,23,29,11,8,13,78,48,69,39,112,85,94,99,116,88,108,98,93,94,122,108,145,113,187,117,229,158,222,206,295,119,119,119,119,119,119,120,120,120,121,0,0,0,0,0,0,0,0,0,74]} 1. e4 {[%emt 0:00:03][%cal Be2e4,Be4e5][%mdl 32]} c5 {[%emt 0:00:05]} 2. Nf3 {[%emt 0:00:05]} g6 {[%emt 0:00:05]} 3. c3 {[%emt 0:00:22]} d5 {[%emt 0:00:02]} 4. e5 {[%emt 0:00:08]} a6 {[%emt 0:00:03]} 5. d4 {[%emt 0:00:09]} Nc6 {[%emt 0:00:04]} 6. Be2 {[%emt 0:00:36] B27: Sicilian: 2 Nf3, unusual Black 2nd moves.} Bg7 {[%emt 0:00:03]} 7. O-O {[%emt 0:00:08]} f6 {[%emt 0:00:03][%cal Rf6e5]} 8. Re1 {[%emt 0:00:47] White has an edge.} ({Reject} 8. dxc5 fxe5 9. Na3 Nf6 $15) 8... fxe5 {[%emt 0:00:22] [#]} 9. Nxe5 $146 {[%emt 0:00:09]} ({Predecessor:} 9. Bf1) 9... cxd4 {[%emt 0:07:29]} 10. cxd4 {[%emt 0:00:30]} Nh6 {[%emt 0:01:10]} 11. Nd2 {[%emt 0:11:10]} Nf5 {[%emt 0:01:58]} (11... O-O {is interesting.} 12. Nb3 Qd6 13. Bd3 a5) 12. Nxc6 {[%emt 0:07:23]} bxc6 {[%emt 0:00:02]} 13. Nb3 {[%emt 0:00:00]} O-O {[%emt 0:01:42]} 14. Bg4 {[%emt 0:00:48]} Qd6 {[%emt 0:01:06]} 15. h3 {[%emt 0:06:46]} a5 {[%emt 0:10:15]} 16. Bxf5 {[%emt 0:02:02]} Bxf5 {[%emt 0:02:32]} 17. Be3 {[%emt 0:00:26]} Rfb8 {[%emt 0:03:50]} 18. Re2 {[%emt 0:00:44]} Re8 {[%emt 0:09:27]} 19. f4 {[%emt 0:05:05]} g5 {[%emt 0:05:12]} 20. Rf2 {[%emt 0:05:45]} gxf4 {[%emt 0:00:20]} (20... Rf8 $11) 21. Bxf4 $16 {[%emt 0:00:10]} Qg6 {[%emt 0:00:02]} 22. Rf3 {[%emt 0:00:36]} Kh8 {[%emt 0:00:32]} (22... e5 $14 23. Rg3 Qf6 24. Bxe5 Rxe5 25. dxe5 Qxe5) 23. Rg3 {[%emt 0:00:54]} Qf7 {[%emt 0:00:05]} 24. Qd2 $1 {[%emt 0:00:08]} Bf6 {[%emt 0:01:16]} 25. Re1 {[%emt 0:01:08][%cal Ba1e1,Be1e3,Be3g3][%mdl 32]} Rg8 {[%emt 0:00:08]} 26. Ree3 {[%emt 0:00:06]} Be4 {[%emt 0:01:17]} 27. Nc5 {[%emt 0:00:18]} ({Don't play} 27. Nxa5 c5 $11) 27... Bf5 {[%emt 0:00:01]} 28. a4 {[%emt 0:00:30]} Rg7 {[%emt 0:00:02]} 29. Kh2 {[%emt 0:00:12]} Rag8 {[%emt 0:00:04]} (29... Rg6 $16 {was worth a try.}) 30. Rxg7 {[%emt 0:01:30]} (30. b4 $18) 30... Rxg7 {[%emt 0:00:01]} (30... Bxg7 $16 {was called for.} 31. Rg3 Qf8) 31. Rg3 {[%emt 0:00:39]} h5 {[%emt 0:00:26]} (31... Kg8 $16 32. Rxg7+ Qxg7) 32. b4 $1 $18 {[%emt 0:00:29]} axb4 {[%emt 0:00:06]} (32... h4 {was necessary.} 33. Rf3 Qg6) 33. Qxb4 {[%emt 0:00:03]} (33. a5 $1 $18 {[%cal Ra5a6] is the precise move to win.}) 33... h4 $16 {[%emt 0:00:28]} 34. Rxg7 {[%emt 0:00:05]} Qxg7 {[%emt 0:00:01]} 35. Qb8+ $1 {[%emt 0:00:23]} Kh7 {[%emt 0:00:01] [#]} 36. Be5 {[%emt 0:00:08] Threatens to win with a5.} Be4 {[%emt 0:00:22]} 37. Nxe4 {[%emt 0:00:03] Active counter play!} dxe4 {[%emt 0:00:01][%cal Bd5e4,Be4e3][%mdl 32] [#] KQB-KQB} 38. a5 {[%emt 0:00:24]} ({White has to play} 38. Bxf6 $1 $16 exf6 39. Qf4) 38... e3 $1 $11 {[%emt 0:00:11] The position is equal.} 39. Qb1+ {[%emt 0:00:02]} Kh8 $1 {[%emt 0:00:09]} 40. Qb8+ {[%emt 0:00:28]} Kh7 {[%emt 0:00:01] ( -> ...Bxe5+)} 41. Qb1+ {[%emt 0:00:25]} Kh8 $1 {[%emt 0:00:01]} 42. Qb8+ {[%emt 0:00:11]} ({Better is} 42. Bf4 $11 Bxd4 43. Qf5) 42... Kh7 {[%emt 0:01:05] Weighted Error Value: White=0.15 (very precise) /Black=0.17 (very precise)} 1/2-1/2